fUST/lending_fUST_20241019
["ID","MTS","AMOUNT","RATE_DAILY","PERIOD"]
[340484728,1729299956583,-151.0,0.00014881,2]
[340484729,1729299956606,-151.0,0.00014881,2]
[340484730,1729299956628,-151.0,0.00014881,2]
[340484731,1729299956651,-151.0,0.00014881,2]
[340484732,1729299956674,-500.0,0.00014881,2]
[340484733,1729299956712,-151.0,0.00014881,2]
[340484734,1729299956736,-196.387412,0.00014881,2]
[340484735,1729299956762,-500.0,0.00014881,2]
[340484736,1729299956787,-659.75,0.00014881,2]
[340484737,1729299956814,-210.71525,0.00014881,2]
[340484738,1729299956842,-210.71525,0.00014881,2]
[340484739,1729299956871,-210.71525,0.00014881,2]
[340484740,1729299956899,-210.71525,0.00014881,2]
[340484741,1729299956926,-210.71525,0.00014881,2]
[340484742,1729299956954,-151.0,0.00014881,2]
[340484743,1729299956980,-151.0,0.00014881,2]
[340484744,1729299957004,-151.0,0.00014881,2]
[340484745,1729299957029,-500.0,0.00014881,2]
[340484746,1729299957055,-151.0,0.00014881,2]
[340484747,1729299957082,-151.0,0.00014881,2]
[340484748,1729299957108,-151.0,0.00014881,2]
[340484749,1729299957134,-151.0,0.00014881,2]
[340484750,1729299957161,-151.0,0.00014881,2]
[340484751,1729299957186,-500.0,0.00014881,2]
[340484752,1729299957210,-288.017434,0.00014881,2]
[340484753,1729299957235,-500.0,0.00014881,2]
[340484754,1729299957258,-500.0,0.00014881,2]
[340484755,1729299957282,-151.0,0.00014881,2]
[340484756,1729299957305,-500.0,0.00014881,2]
[340484757,1729299957330,-270.81485169,0.00014881,2]
[340484758,1729299957357,-1829.57,0.00014881,2]
[340484759,1729299957381,-552.22,0.00014881,2]
[340484760,1729299957408,-500.0,0.00014881,2]
[340484761,1729299957439,-500.0,0.00014881,2]
[340484762,1729299957465,-151.0,0.00014881,2]
[340484763,1729299957490,-151.0,0.00014881,2]
[340484764,1729299957518,-151.0,0.00014881,2]
[340484765,1729299957543,-151.0,0.00014881,2]
[340484766,1729299957567,-151.0,0.00014881,2]
[340484767,1729299957590,-151.0,0.00014881,2]
[340484768,1729299957614,-184.623404,0.00014881,2]
[340484769,1729299957638,-828.3,0.00014881,2]
[340484770,1729299957664,-500.0,0.00014881,2]
[340484771,1729299957687,-742.04,0.00014881,2]
[340484772,1729299957711,-500.0,0.00014881,2]
[340484773,1729299957736,-500.0,0.00014881,2]
[340484774,1729299957760,-774.14,0.00014881,2]
[340484775,1729299957784,-151.0,0.00014881,2]
[340484776,1729299957807,-151.0,0.00014881,2]
[340484777,1729299957832,-151.0,0.00014881,2]
[340484778,1729299957856,-151.0,0.00014881,2]
[340484779,1729299957879,-151.0,0.00014881,2]
[340484780,1729299957902,-151.0,0.00014881,2]
[340484781,1729299957926,-500.0,0.00014881,2]
[340484782,1729299957948,-639.04,0.00014881,2]
[340484783,1729299957971,-500.0,0.00014881,2]
[340484784,1729299957997,-522.73,0.00014881,2]
[340484785,1729299958020,-151.0,0.00014881,2]
[340484786,1729299958044,-151.0,0.00014881,2]
[340484787,1729299958067,-151.0,0.00014881,2]
[340484788,1729299958089,-151.0,0.00014881,2]
[340484789,1729299958112,-151.0,0.00014881,2]
[340484790,1729299958136,-151.0,0.00014881,2]
[340484791,1729299958159,-151.0,0.00014881,2]
[340484792,1729299958183,-151.0,0.00014881,2]
[340484793,1729299958208,-151.0,0.00014881,2]
[340484794,1729299958238,-151.0,0.00014881,2]
[340484795,1729299958264,-151.0,0.00014881,2]
[340484796,1729299958289,-151.0,0.00014881,2]
[340484797,1729299958313,-151.0,0.00014881,2]
[340484798,1729299958341,-151.0,0.00014881,2]
[340484799,1729299958365,-151.0,0.00014881,2]
[340484800,1729299958389,-151.0,0.00014881,2]
[340484801,1729299958414,-151.0,0.00014881,2]
[340484802,1729299958438,-224.786704,0.00014881,2]
[340484803,1729299958462,-535.73,0.00014881,2]
[340484804,1729299958487,-151.0,0.00014902,2]
[340484805,1729299958512,-250.774686,0.00014902,2]
[340484806,1729299958535,-230.169107,0.00014902,2]
[340484807,1729299958557,-151.0,0.00014902,2]
[340484808,1729299958581,-151.0,0.00014902,2]
[340484809,1729299958603,-151.0,0.00014902,2]
[340484810,1729299958627,-210.71525,0.00014902,2]
[340484811,1729299958650,-151.0,0.00014902,2]
[340484812,1729299958673,-420.0,0.00014902,2]
[340484813,1729299958698,-500.0,0.00014949,2]
[340484814,1729299958721,-500.0,0.00014949,2]
[340484815,1729299958747,-500.0,0.00014949,2]
[340484816,1729299958771,-647.28791286,0.00014949,2]
[340484817,1729299958798,-37257.51108192,0.0001495,2]
[340484871,1729300243063,-250.0,0.00013699,2]
[340484872,1729300243074,-1721.21923969,0.0001485,2]
[340484873,1729300243085,-538.11212031,0.00014873,2]
[340484874,1729300243095,-500.0,0.00014874,2]
[340484875,1729300243106,-1527.02,0.00014874,2]
[340484876,1729300243117,-367.233801,0.00014875,2]
[340484913,1729301426904,307.3,0.00027,60]
[340484971,1729301438729,-250.0,0.00013699,2]
[340484972,1729301438744,-169.835959,0.0001386,2]
[340484973,1729301438754,-484.30090827,0.00014779,2]
[340484974,1729301438764,-223.95340948,0.00014838,2]
[340484975,1729301438774,-300.0,0.00014858,2]
[340484976,1729301438783,-300.0,0.00014858,2]
[340484977,1729301438793,-238.58754587,0.00014858,2]
[340484978,1729301438803,-500.0,0.00014859,2]
[340484979,1729301438812,-500.0,0.00014859,2]
[340484980,1729301438821,-1570.86,0.00014859,2]
[340484981,1729301438830,-519.07,0.00014859,2]
[340484982,1729301438839,-1306.28,0.00014859,2]
[340484983,1729301438849,-5184.52,0.00014859,2]
[340484984,1729301438858,-712.83,0.00014859,2]
[340484985,1729301438867,-500.0,0.00014859,2]
[340484986,1729301438877,-527.33,0.00014859,2]
[340484987,1729301438888,-42417.04,0.00014859,2]
[340484988,1729301438898,-144.29925373,0.00014859,2]
[340484989,1729301438911,-355.70074627,0.00014859,2]
[340484990,1729301438920,-144.07492189,0.00014859,2]
[340484991,1729301438932,-648.90507811,0.00014859,2]
[340484992,1729301438941,-1017.85,0.00014859,2]
[340484993,1729301438950,-1421.85508958,0.00014859,2]
[340485019,1729301440172,-3678.88491042,0.00014859,2]
[340485020,1729301440182,-500.0,0.00014859,2]
[340485021,1729301440191,-500.0,0.00014859,2]
[340485022,1729301440200,-500.0,0.00014859,2]
[340485023,1729301440210,-848.49,0.00014859,2]
[340485024,1729301440219,-500.0,0.00014859,2]
[340485025,1729301440229,-1463.69,0.00014859,2]
[340485026,1729301440239,-5288.23239567,0.00014859,2]
[340485027,1729301440301,-302.8671087,0.00014859,2]
[340485064,1729301843093,1210.21,0.00027,60]
[340485097,1729302640660,-165.7908829,0.00013594,2]
[340485098,1729302640670,-169.835959,0.00013699,2]
[340485099,1729302640679,-250.0,0.00013699,2]
[340485100,1729302640688,-20.5970005,0.00014738,2]
[340485101,1729302640701,-415.93851147,0.00014738,2]
[340485102,1729302640710,-61.65490563,0.00014748,2]
[340485138,1729302646514,-268.0,0.00014748,2]
[340485139,1729302715514,1224.22405898,0.00027,120]
[340485197,1729303838915,-250.0,0.00013699,2]
[340485198,1729303838926,-402.608,0.00014465,2]
[340485199,1729303838935,-26.94617824,0.00014465,2]
[340485423,1729305032967,-189.51002352,0.00013687,2]
[340485424,1729305032977,-185.20723923,0.00013687,2]
[340485425,1729305032987,-3444.78841324,0.00013687,2]
[340485469,1729305043938,-4300.10220476,0.00013687,2]
[340485470,1729305043955,-250.0,0.00013699,2]
[340485471,1729305043968,-300.0,0.00014627,2]
[340485472,1729305043978,-392.8819608,0.0001463,2]
[340485473,1729305043987,-479.9193633,0.0001463,2]
[340485474,1729305043996,-176.25193252,0.00014709,2]
[340485475,1729305044005,-500.0,0.0001471,2]
[340485476,1729305044016,-500.0,0.0001471,2]
[340485477,1729305044027,-759.94,0.0001471,2]
[340485478,1729305044037,-95.85953852,0.0001471,2]
[340485484,1729305046801,-500.0,0.0001471,2]
[340485485,1729305046813,-1402.7,0.0001471,2]
[340485486,1729305046823,-5633.10154896,0.0001471,2]
[340485487,1729305595029,10000.0,0.00027,60]
[340485511,1729306238343,-676.31,0.00010959,2]
[340485512,1729306238358,-26.98521112,0.00013421,2]
[340485544,1729306594989,237.5103488,0.0001,2]
[340485546,1729306798671,1000.0,0.00027,60]
[340485547,1729306880682,1000.0,0.00027,60]
[340485548,1729306933963,1000.0,0.00027,60]
[340485549,1729306951926,180.0,0.00027,60]
[340485572,1729307432131,-189.51002352,0.00013077,2]
[340485573,1729307432142,-6685.76283026,0.00013077,2]
[340485574,1729307432152,-632.7071603,0.00013603,2]
[340485575,1729307432161,-191.223684,0.00013699,2]
[340485576,1729307432170,-170.066324,0.00013699,2]
[340485577,1729307432180,-250.0,0.00013699,2]
[340485578,1729307432190,-191.223684,0.00014384,2]
[340485579,1729307432200,-300.0,0.00014442,2]
[340485580,1729307432209,-1659.2027693,0.00014443,2]
[340485581,1729307432219,-500.0,0.00014542,2]
[340485582,1729307432228,-19155.37546653,0.00014543,2]
[340485583,1729307432240,-1046.84811361,0.00014543,2]
[340485597,1729307438511,-6676.09011044,0.00014543,2]
[340485635,1729307440484,-1546.78600054,0.00013566,2]
[340485636,1729307440497,-1913.10538877,0.00013566,2]
[340485637,1729307440512,-3225.87144095,0.00013566,2]
[340485638,1729307440523,-4796.01516247,0.00014543,2]
[340485668,1729307446160,-465.49507766,0.00014543,2]
[340485669,1729308306433,1649.14,0.00025,31]
[340485732,1729308640450,-170.0663249,0.00013699,2]
[340485733,1729308640461,-250.0,0.00013699,2]
[340485734,1729308640471,-33.33569156,0.00013699,2]
[340486022,1729309731662,8399.65,0.00027,60]
[340486023,1729309762526,20000.0,0.00027,60]
[340486059,1729309832864,-150.82037603,0.00013397,2]
[340486061,1729309832874,-2836.98730985,0.00013427,2]
[340486063,1729309832886,-5992.00404126,0.00013427,2]
[340486065,1729309832895,-300.0,0.00013496,2]
[340486067,1729309832905,-300.0,0.00013496,2]
[340486069,1729309832914,-250.0,0.00013699,2]
[340486070,1729309832923,-322.292619,0.00013699,2]
[340486071,1729309832933,-150.82037601,0.00013774,2]
[340486072,1729309832942,-150.82037601,0.0001415,2]
[340486073,1729309832952,-852.7599282,0.0001425,2]
[340486074,1729309832961,-322.292619,0.00014384,2]
[340486075,1729309832971,-1000.0,0.0001439,2]
[340486076,1729309832979,-964.21650996,0.00014399,2]
[340486077,1729309832989,-353.59376472,0.000144,2]
[340486078,1729309832998,-561.73807946,0.00014408,2]
[340486079,1729309833007,-204.50876816,0.00014421,2]
[340486080,1729309833017,-200.0,0.0001447,2]
[340486081,1729309833027,-500.0,0.00014472,2]
[340486082,1729309833036,-508.58881729,0.00014472,2]
[340486083,1729309833046,-1344.26,0.00014472,2]
[340486084,1729309833055,-500.0,0.00014473,2]
[340486085,1729309833065,-500.0,0.00014473,2]
[340486086,1729309833074,-225.89522989,0.00014473,2]
[340486087,1729309833083,-176.008364,0.00014473,2]
[340486088,1729309833094,-176.008364,0.00014473,2]
[340486089,1729309833104,-151.0,0.00014473,2]
[340486090,1729309833113,-151.0,0.00014473,2]
[340486091,1729309833123,-152.385682,0.00014473,2]
[340486092,1729309833133,-151.0,0.00014473,2]
[340486093,1729309833142,-151.0,0.00014473,2]
[340486094,1729309833152,-288.955682,0.00014473,2]
[340486095,1729309833162,-218.745063,0.00014473,2]
[340486096,1729309833172,-151.0,0.00014473,2]
[340486097,1729309833181,-274.315008,0.00014473,2]
[340486098,1729309833191,-218.625568,0.00014473,2]
[340486099,1729309833200,-151.583563,0.00014473,2]
[340486100,1729309833210,-218.625568,0.00014473,2]
[340486101,1729309833219,-152.460989,0.00014473,2]
[340486102,1729309833229,-284.736487,0.00014473,2]
[340486103,1729309833238,-152.460989,0.00014473,2]
[340486104,1729309833248,-151.0,0.00014473,2]
[340486105,1729309833258,-163.231928,0.00014473,2]
[340486106,1729309833267,-254.24745,0.00014473,2]
[340486107,1729309833277,-163.231928,0.00014473,2]
[340486108,1729309833287,-151.0,0.00014473,2]
[340486109,1729309833297,-151.0,0.00014473,2]
[340486110,1729309833307,-151.0,0.00014473,2]
[340486111,1729309833316,-153.559081,0.00014473,2]
[340486112,1729309833326,-151.0,0.00014473,2]
[340486113,1729309833336,-153.048164,0.00014473,2]
[340486114,1729309833347,-151.0,0.00014473,2]
[340486115,1729309833356,-151.0,0.00014473,2]
[340486116,1729309833365,-151.0,0.00014473,2]
[340486117,1729309833376,-151.0,0.00014473,2]
[340486118,1729309833385,-151.0,0.00014473,2]
[340486119,1729309833395,-151.0,0.00014473,2]
[340486120,1729309833404,-154.425619,0.00014473,2]
[340486121,1729309833414,-181.847423,0.00014473,2]
[340486122,1729309833424,-181.847423,0.00014473,2]
[340486123,1729309833433,-151.0,0.00014473,2]
[340486124,1729309833442,-161.355826,0.00014473,2]
[340486125,1729309833452,-151.0,0.00014473,2]
[340486126,1729309833463,-181.847423,0.00014473,2]
[340486127,1729309833473,-151.0,0.00014473,2]
[340486128,1729309833483,-181.847423,0.00014473,2]
[340486129,1729309833493,-151.0,0.00014473,2]
[340486130,1729309833504,-151.0,0.00014473,2]
[340486131,1729309833515,-167.510444,0.00014473,2]
[340486132,1729309833524,-167.510444,0.00014473,2]
[340486133,1729309833535,-167.510444,0.00014473,2]
[340486134,1729309833544,-167.510444,0.00014473,2]
[340486135,1729309833554,-151.0,0.00014473,2]
[340486136,1729309833564,-151.0,0.00014473,2]
[340486137,1729309833574,-151.0,0.00014473,2]
[340486138,1729309833584,-574.153177,0.00014473,2]
[340486139,1729309833596,-574.153177,0.00014473,2]
[340486140,1729309833607,-574.153177,0.00014473,2]
[340486141,1729309833617,-151.0,0.00014473,2]
[340486142,1729309833627,-151.0,0.00014473,2]
[340486143,1729309833637,-151.0,0.00014473,2]
[340486144,1729309833647,-574.153177,0.00014473,2]
[340486145,1729309833656,-574.153177,0.00014473,2]
[340486146,1729309833666,-574.153177,0.00014473,2]
[340486147,1729309833676,-151.0,0.00014473,2]
[340486148,1729309833686,-274.734489,0.00014473,2]
[340486149,1729309833696,-151.0,0.00014473,2]
[340486150,1729309833706,-151.0,0.00014473,2]
[340486151,1729309833716,-151.0,0.00014473,2]
[340486152,1729309833729,-151.0,0.00014473,2]
[340486153,1729309833739,-187.130864,0.00014473,2]
[340486154,1729309833749,-151.0,0.00014473,2]
[340486155,1729309833759,-151.0,0.00014473,2]
[340486156,1729309833770,-151.0,0.00014473,2]
[340486157,1729309833779,-151.0,0.00014473,2]
[340486158,1729309833790,-151.0,0.00014473,2]
[340486159,1729309833802,-151.0,0.00014473,2]
[340486160,1729309833813,-151.0,0.00014473,2]
[340486161,1729309833824,-151.0,0.00014473,2]
[340486162,1729309833835,-151.0,0.00014473,2]
[340486163,1729309833847,-151.0,0.00014473,2]
[340486164,1729309833857,-151.0,0.00014473,2]
[340486165,1729309833867,-151.0,0.00014473,2]
[340486166,1729309833877,-151.0,0.00014473,2]
[340486167,1729309833888,-299.350318,0.00014473,2]
[340486168,1729309833898,-151.0,0.00014473,2]
[340486169,1729309833908,-151.0,0.00014473,2]
[340486170,1729309833919,-151.0,0.00014473,2]
[340486171,1729309833929,-151.0,0.00014473,2]
[340486172,1729309833939,-151.0,0.00014473,2]
[340486173,1729309833949,-153.123976,0.00014473,2]
[340486174,1729309833959,-151.0,0.00014473,2]
[340486175,1729309833969,-151.0,0.00014473,2]
[340486176,1729309833979,-151.0,0.00014473,2]
[340486177,1729309833991,-151.0,0.00014473,2]
[340486178,1729309834001,-239.527336,0.00014473,2]
[340486179,1729309834010,-151.0,0.00014473,2]
[340486180,1729309834020,-151.0,0.00014473,2]
[340486181,1729309834030,-163.698637,0.00014473,2]
[340486182,1729309834040,-243.72134305,0.00014488,2]
[340486183,1729309834050,-16461.21293456,0.00014489,2]
[340486184,1729309838762,-2191.81953596,0.00014489,2]
[340486185,1729309838991,-796.6653411,0.00014489,2]
[340486186,1729309839006,-7969.34409519,0.00014489,2]
[340486187,1729309839020,-83905.31100819,0.00014489,2]
[340486188,1729309839032,-73319.3844167,0.00014489,2]
[340486189,1729309839041,-500.0,0.00014489,2]
[340486190,1729309839053,-500.0,0.00014489,2]
[340486191,1729309839063,-1649.91,0.00014489,2]
[340486192,1729309839078,-1293.3,0.00014489,2]
[340486193,1729309839088,-500.0,0.00014489,2]
[340486194,1729309839100,-500.0,0.00014489,2]
[340486195,1729309839110,-151.0,0.00014489,2]
[340486196,1729309839120,-151.0,0.00014489,2]
[340486197,1729309839130,-151.0,0.00014489,2]
[340486198,1729309839140,-169.534848,0.00014489,2]
[340486199,1729309839149,-5033.09,0.00014489,2]
[340486200,1729309839160,-683.61,0.00014489,2]
[340486201,1729309839170,-7806.76231582,0.00014489,2]
[340486205,1729309840749,-151.0,0.00014473,2]
[340486206,1729309840759,-151.0,0.00014473,2]
[340486207,1729309840769,-151.0,0.00014473,2]
[340486208,1729309840779,-32842.89768418,0.00014489,2]
[340486209,1729309840788,-151.0,0.00014489,2]
[340486210,1729309840797,-153.748789,0.00014489,2]
[340486211,1729309840807,-506.39,0.00014489,2]
[340486212,1729309840818,-4888.21,0.00014489,2]
[340486213,1729309840827,-975.44,0.00014489,2]
[340486214,1729309840836,-500.0,0.00014489,2]
[340486215,1729309840846,-500.0,0.00014489,2]
[340486216,1729309840857,-813.14,0.00014489,2]
[340486217,1729309840866,-29.18366737,0.0001449,2]
[340486253,1729309843827,-500.0,0.00014472,2]
[340486255,1729309843837,-500.0,0.00014473,2]
[340486258,1729309843851,-500.0,0.00014473,2]
[340486259,1729309843860,-151.0,0.00014473,2]
[340486260,1729309843870,-151.0,0.00014473,2]
[340486261,1729309843881,-152.633688,0.00014473,2]
[340486262,1729309843891,-146.82469663,0.0001449,2]
[340486263,1729309843902,-176.008364,0.0001449,2]
[340486264,1729309843913,-151.0,0.0001449,2]
[340486265,1729309843924,-151.0,0.0001449,2]
[340486266,1729309843936,-500.0,0.0001449,2]
[340486267,1729309843945,-636.62785163,0.0001449,2]
[340486268,1729309843955,-151.0,0.0001449,2]
[340486269,1729309843964,-151.0,0.0001449,2]
[340486270,1729309843975,-728.28,0.0001449,2]
[340486271,1729309843984,-151.0,0.0001449,2]
[340486272,1729309843995,-151.0,0.0001449,2]
[340486273,1729309844007,-151.0,0.0001449,2]
[340486274,1729309844018,-506.07383304,0.0001449,2]
[340486275,1729309844027,-500.0,0.0001449,2]
[340486276,1729309844038,-151.0,0.0001449,2]
[340486277,1729309844049,-153.062458,0.0001449,2]
[340486278,1729309844060,-388.53558735,0.0001449,2]
[340486279,1729309844073,-125.36057894,0.0001449,2]
[340486280,1729309844083,-220.81667,0.0001449,2]
[340486281,1729309844093,-220.81667,0.0001449,2]
[340486282,1729309844104,-76.84191927,0.0001449,2]
[340486285,1729309846567,-143.97475073,0.0001449,2]
[340486286,1729309846579,-220.81667,0.0001449,2]
[340486287,1729309846590,-513.73240377,0.0001449,2]
[340486288,1729309846603,-617.71,0.0001449,2]
[340486289,1729309846612,-151.0,0.0001449,2]
[340486290,1729309846623,-151.0,0.0001449,2]
[340486291,1729309846633,-151.0,0.0001449,2]
[340486292,1729309846645,-151.0,0.0001449,2]
[340486293,1729309846655,-151.0,0.0001449,2]
[340486294,1729309846667,-500.0,0.0001449,2]
[340486295,1729309846679,-518.2947076,0.0001449,2]
[340486296,1729309846689,-503.18877221,0.0001449,2]
[340486297,1729309846700,-614.23,0.0001449,2]
[340486298,1729309846710,-500.0,0.0001449,2]
[340486299,1729309846722,-218.625568,0.0001449,2]
[340486300,1729309846736,-218.625568,0.0001449,2]
[340486301,1729309846748,-218.625568,0.0001449,2]
[340486302,1729309846759,-218.625568,0.0001449,2]
[340486303,1729309846769,-218.625568,0.0001449,2]
[340486304,1729309846780,-218.625568,0.0001449,2]
[340486305,1729309846790,-218.625568,0.0001449,2]
[340486306,1729309846799,-218.625568,0.0001449,2]
[340486307,1729309846808,-218.625568,0.0001449,2]
[340486308,1729309846819,-152.460989,0.0001449,2]
[340486309,1729309846830,-218.625568,0.0001449,2]
[340486310,1729309846840,-152.460989,0.0001449,2]
[340486311,1729309846851,-152.460989,0.0001449,2]
[340486312,1729309846860,-152.460989,0.0001449,2]
[340486313,1729309846869,-152.460989,0.0001449,2]
[340486314,1729309846880,-512.03493733,0.0001449,2]
[340486315,1729309846890,-152.460989,0.0001449,2]
[340486316,1729309846900,-152.460989,0.0001449,2]
[340486317,1729309846912,-152.460989,0.0001449,2]
[340486318,1729309846922,-152.460989,0.0001449,2]
[340486319,1729309846932,-152.460989,0.0001449,2]
[340486320,1729309846943,-500.0,0.0001449,2]
[340486321,1729309846954,-151.0,0.0001449,2]
[340486322,1729309846968,-500.0,0.0001449,2]
[340486323,1729309846983,-151.0,0.0001449,2]
[340486324,1729309846998,-151.0,0.0001449,2]
[340486325,1729309847011,-151.0,0.0001449,2]
[340486326,1729309847026,-151.0,0.0001449,2]
[340486327,1729309847038,-163.231928,0.0001449,2]
[340486328,1729309847048,-163.231928,0.0001449,2]
[340486329,1729309847061,-163.231928,0.0001449,2]
[340486330,1729309847073,-163.231928,0.0001449,2]
[340486331,1729309847085,-486.290612,0.0001449,2]
[340486332,1729309847097,-163.231928,0.0001449,2]
[340486333,1729309847112,-500.0,0.0001449,2]
[340486334,1729309847125,-163.231928,0.0001449,2]
[340486335,1729309847136,-163.231928,0.0001449,2]
[340486336,1729309847148,-163.231928,0.0001449,2]
[340486337,1729309847160,-163.231928,0.0001449,2]
[340486338,1729309847172,-163.231928,0.0001449,2]
[340486339,1729309847185,-591.92,0.0001449,2]
[340486340,1729309847196,-151.0,0.0001449,2]
[340486341,1729309847207,-151.0,0.0001449,2]
[340486342,1729309847218,-151.0,0.0001449,2]
[340486343,1729309847229,-151.0,0.0001449,2]
[340486344,1729309847241,-151.0,0.0001449,2]
[340486345,1729309847252,-151.0,0.0001449,2]
[340486346,1729309847264,-151.0,0.0001449,2]
[340486347,1729309847275,-277.281438,0.0001449,2]
[340486348,1729309847287,-500.0,0.0001449,2]
[340486349,1729309847297,-500.0,0.0001449,2]
[340486350,1729309847307,-93.75364006,0.0001449,2]
[340486351,1729309847321,-308.51,0.0001449,2]
[340486352,1729309847384,-102.34899112,0.0001449,2]
[340486353,1729309847396,-189.29234625,0.0001449,2]
[340486354,1729309847409,-500.0,0.0001449,2]
[340486355,1729309847420,-513.34755762,0.0001449,2]
[340486356,1729309847432,-509.44278605,0.0001449,2]
[340486357,1729309847444,-151.0,0.0001449,2]
[340486358,1729309847455,-151.0,0.0001449,2]
[340486359,1729309847465,-160.852143,0.0001449,2]
[340486360,1729309847475,-151.0,0.0001449,2]
[340486361,1729309847484,-501.00916812,0.0001449,2]
[340486362,1729309847495,-151.0,0.0001449,2]
[340486363,1729309847507,-151.0,0.0001449,2]
[340486364,1729309847519,-500.0,0.0001449,2]
[340486365,1729309847535,-151.0,0.0001449,2]
[340486366,1729309847560,-151.0,0.0001449,2]
[340486367,1729309847583,-151.0,0.0001449,2]
[340486368,1729309847609,-251.34619,0.0001449,2]
[340486369,1729309847634,-164.527832,0.0001449,2]
[340486370,1729309847658,-500.0,0.0001449,2]
[340486371,1729309847682,-181.847423,0.0001449,2]
[340486372,1729309847707,-1269.43043484,0.0001449,2]
[340486373,1729309847733,-7085.12535964,0.0001449,2]
[340486390,1729310890803,475.46750723,0.000106,120]
[340486441,1729311038803,-802.2748282,0.0001314,2]
[340486442,1729311038812,-8441.7919706,0.0001343,2]
[340486443,1729311038822,-289.0,0.00013696,2]
[340486444,1729311038831,-300.0,0.00013696,2]
[340486445,1729311038841,-250.0,0.00013699,2]
[340486446,1729311038852,-2685.734375,0.00013699,2]
[340486447,1729311038863,-500.0,0.00013976,2]
[340486448,1729311038874,-1288.24,0.00013976,2]
[340486449,1729311038885,-8828.99135111,0.00014016,2]
[340486450,1729311038895,-1942.75554445,0.00014071,2]
[340486451,1729311038906,-209.4080608,0.000141,2]
[340486452,1729311038917,-500.0,0.0001417,2]
[340486453,1729311038927,-603.59334796,0.0001417,2]
[340486454,1729311038938,-1581.16,0.0001417,2]
[340486455,1729311038948,-500.0,0.0001417,2]
[340486456,1729311038957,-1239.42,0.0001417,2]
[340486457,1729311038966,-5675.91,0.0001417,2]
[340486458,1729311038978,-500.0,0.0001417,2]
[340486459,1729311038990,-655.13,0.0001417,2]
[340486460,1729311039000,-500.0,0.0001417,2]
[340486461,1729311039010,-8039.18295706,0.0001417,2]
[340486637,1729311043721,-2434.32342322,0.0001417,2]
[340486641,1729311046648,-400.0,0.0001417,2]
[340486644,1729311781175,951.28,0.00027,60]
[340486684,1729312231914,-184.38426,0.00012789,2]
[340486685,1729312231926,-2644.0659391,0.00012804,2]
[340486686,1729312231935,-184.38426,0.00012824,2]
[340486687,1729312231945,-184.38426,0.00012859,2]
[340486688,1729312231954,-184.38426,0.00012894,2]
[340486689,1729312231963,-184.38426,0.00012929,2]
[340486690,1729312231972,-184.38426,0.00012965,2]
[340486691,1729312231982,-184.38426,0.00013,2]
[340486692,1729312231991,-184.38426,0.00013035,2]
[340486693,1729312232000,-184.38426,0.0001307,2]
[340486694,1729312232010,-184.38426,0.00013105,2]
[340486695,1729312232019,-184.38426,0.0001314,2]
[340486696,1729312232028,-184.38426,0.00013175,2]
[340486697,1729312232038,-184.38426,0.0001321,2]
[340486698,1729312232047,-153.0,0.00013241,2]
[340486699,1729312232057,-153.0,0.00013241,2]
[340486700,1729312232066,-153.0,0.00013241,2]
[340486701,1729312232075,-184.38426,0.00013245,2]
[340486702,1729312232085,-184.38426,0.0001328,2]